{"text_format":"3","workbook":"xlsx","n_sheets":1,"sheets":["Henk. koht. kuukausibudjetti"],"read":"whole","date_system":"1900"}

{"sheet":"Henk. koht. kuukausibudjetti","index":0,"n_rows":64,"n_cols":10,"rows_kept":64,"merged":[[1,1,1,9],[2,1,2,9],[4,1,6,1],[4,2,4,3],[4,6,5,8],[4,9,5,9],[5,2,5,3],[6,2,6,3],[6,6,7,8],[6,9,7,9],[7,1,9,1],[7,2,7,3],[8,2,8,3],[8,6,9,8],[8,9,9,9],[9,2,9,3],[22,6,22,9],[23,1,23,4],[31,6,31,9],[33,1,33,4],[38,6,38,9],[40,1,40,4],[44,6,44,9],[46,1,46,4],[50,6,50,9],[54,1,54,4],[57,6,57,9],[58,6,59,8],[58,9,59,9],[60,6,61,8],[60,9,61,9],[62,6,63,8],[62,9,63,9]]}
[]
[null,"Henk. koht. kuukausibudjetti"]
[]
[]
[null,"SUUNNITELLUT KUUKAUSITTAISET TULOT","Tulot 1",null,{"v":2500,"d":"2,500 €"},null,"SUUNNITELTU SALDO (suunnitellut tulot vähennettyinä kuluilla)",null,null,{"$f":"E7-J59","v":{"v":940,"d":"940 €"}}]
[null,null,"Lisätulot",null,{"v":500,"d":"500 €"}]
[null,null,"Kuukausittaiset kokonaistulot",null,{"$f":"SUM(E5:E6)","v":{"v":3000,"d":"3,000 €"}},null,"TODELLINEN SALDO (todelliset tulot vähennettyinä kuluilla)",null,null,{"$f":"E10-J61","v":{"v":960,"d":"960 €"}}]
[null,"TODELLISET KUUKAUSITTAISET TULOT","Tulot 1",null,{"v":2500,"d":"2,500 €"}]
[null,null,"Lisätulot",null,{"v":500,"d":"500 €"},null,"EROTUS (todellinen vähennettynä suunnitellulla)",null,null,{"$f":"J7-J5","v":{"v":20,"d":"20 €"}}]
[null,null,"Kuukausittaiset kokonaistulot",null,{"$f":"SUM(E8:E9)","v":{"v":3000,"d":"3,000 €"}}]
[]
[null,"ASUMINEN","Suunnitellut kustannukset","Todelliset kustannukset","Erotus",null,"VAPAA-AIKA","Suunnitellut kustannukset","Todelliset kustannukset","Erotus"]
[null,"Asuntolaina tai vuokra",{"v":1500,"d":"1,500 €"},{"v":1400,"d":"1,400 €"},{"$f":"Taulukko1[[#This Row],[Suunnitellut kustannukset]]-Taulukko1[[#This Row],[Todelliset kustannukset]]","v":{"v":100,"d":"100 €"}},null,"Videot/DVD-levyt",{"v":0,"d":"0 €"},{"v":50,"d":"50 €"},{"$f":"Taulukko2[[#This Row],[Suunnitellut kustannukset]]-Taulukko2[[#This Row],[Todelliset kustannukset]]","v":{"v":-50,"d":"-50 €"}}]
[null,"Puhelin",{"v":60,"d":"60 €"},{"v":100,"d":"100 €"},{"$f":"Taulukko1[[#This Row],[Suunnitellut kustannukset]]-Taulukko1[[#This Row],[Todelliset kustannukset]]","v":{"v":-40,"d":"-40 €"}},null,"CD-levyt",null,null,{"$f":"Taulukko2[[#This Row],[Suunnitellut kustannukset]]-Taulukko2[[#This Row],[Todelliset kustannukset]]","v":{"v":0,"d":"0 €"}}]
[null,"Sähkö",{"v":50,"d":"50 €"},{"v":60,"d":"60 €"},{"$f":"Taulukko1[[#This Row],[Suunnitellut kustannukset]]-Taulukko1[[#This Row],[Todelliset kustannukset]]","v":{"v":-10,"d":"-10 €"}},null,"Elokuvat",null,null,{"$f":"Taulukko2[[#This Row],[Suunnitellut kustannukset]]-Taulukko2[[#This Row],[Todelliset kustannukset]]","v":{"v":0,"d":"0 €"}}]
[null,"Lämmitys",{"v":200,"d":"200 €"},{"v":180,"d":"180 €"},{"$f":"Taulukko1[[#This Row],[Suunnitellut kustannukset]]-Taulukko1[[#This Row],[Todelliset kustannukset]]","v":{"v":20,"d":"20 €"}},null,"Konsertit",null,null,{"$f":"Taulukko2[[#This Row],[Suunnitellut kustannukset]]-Taulukko2[[#This Row],[Todelliset kustannukset]]","v":{"v":0,"d":"0 €"}}]
[null,"Vesi ja viemäröinti",null,null,{"$f":"Taulukko1[[#This Row],[Suunnitellut kustannukset]]-Taulukko1[[#This Row],[Todelliset kustannukset]]","v":{"v":0,"d":"0 €"}},null,"Urheilutapahtumat",null,null,{"$f":"Taulukko2[[#This Row],[Suunnitellut kustannukset]]-Taulukko2[[#This Row],[Todelliset kustannukset]]","v":{"v":0,"d":"0 €"}}]
[null,"Kaapeli",null,null,{"$f":"Taulukko1[[#This Row],[Suunnitellut kustannukset]]-Taulukko1[[#This Row],[Todelliset kustannukset]]","v":{"v":0,"d":"0 €"}},null,"Teatteri",null,null,{"$f":"Taulukko2[[#This Row],[Suunnitellut kustannukset]]-Taulukko2[[#This Row],[Todelliset kustannukset]]","v":{"v":0,"d":"0 €"}}]
[null,"Roskahuolto",null,null,{"$f":"Taulukko1[[#This Row],[Suunnitellut kustannukset]]-Taulukko1[[#This Row],[Todelliset kustannukset]]","v":{"v":0,"d":"0 €"}},null,"Muut",null,null,{"$f":"Taulukko2[[#This Row],[Suunnitellut kustannukset]]-Taulukko2[[#This Row],[Todelliset kustannukset]]","v":{"v":0,"d":"0 €"}}]
[null,"Huolto tai korjaukset",null,null,{"$f":"Taulukko1[[#This Row],[Suunnitellut kustannukset]]-Taulukko1[[#This Row],[Todelliset kustannukset]]","v":{"v":0,"d":"0 €"}},null,"Muut",null,null,{"$f":"Taulukko2[[#This Row],[Suunnitellut kustannukset]]-Taulukko2[[#This Row],[Todelliset kustannukset]]","v":{"v":0,"d":"0 €"}}]
[null,"Tarvikkeet",null,null,{"$f":"Taulukko1[[#This Row],[Suunnitellut kustannukset]]-Taulukko1[[#This Row],[Todelliset kustannukset]]","v":{"v":0,"d":"0 €"}},null,"Muut",null,null,{"$f":"Taulukko2[[#This Row],[Suunnitellut kustannukset]]-Taulukko2[[#This Row],[Todelliset kustannukset]]","v":{"v":0,"d":"0 €"}}]
[null,"Muut",null,null,{"$f":"Taulukko1[[#This Row],[Suunnitellut kustannukset]]-Taulukko1[[#This Row],[Todelliset kustannukset]]","v":{"v":0,"d":"0 €"}},null,"Summa",{"$f":"SUBTOTAL(109,Taulukko2[Suunnitellut kustannukset])","v":{"v":0,"d":"0 €"}},{"$f":"SUBTOTAL(109,Taulukko2[Todelliset kustannukset])","v":{"v":50,"d":"50 €"}},{"$f":"SUBTOTAL(109,Taulukko2[Erotus])","v":{"v":-50,"d":"-50 €"}}]
[null,"Summa",{"$f":"SUBTOTAL(109,Taulukko1[Suunnitellut kustannukset])","v":{"v":1810,"d":"1,810 €"}},{"$f":"SUBTOTAL(109,Taulukko1[Todelliset kustannukset])","v":{"v":1740,"d":"1,740 €"}},{"$f":"SUBTOTAL(109,Taulukko1[Erotus])","v":{"v":70,"d":"70 €"}}]
[{"$nulls":6},"LAINAT","Suunnitellut kustannukset","Todelliset kustannukset","Erotus"]
[null,"LIIKKUMINEN","Suunnitellut kustannukset","Todelliset kustannukset","Erotus",null,"Henkilökohtainen",null,null,{"$f":"Taulukko8[[#This Row],[Suunnitellut kustannukset]]-Taulukko8[[#This Row],[Todelliset kustannukset]]","v":{"v":0,"d":"0 €"}}]
[null,"Ajoneuvomaksu",{"v":250,"d":"250 €"},{"v":250,"d":"250 €"},{"$f":"Taulukko3[[#This Row],[Suunnitellut kustannukset]]-Taulukko3[[#This Row],[Todelliset kustannukset]]","v":{"v":0,"d":"0 €"}},null,"Opiskelija",null,null,{"$f":"Taulukko8[[#This Row],[Suunnitellut kustannukset]]-Taulukko8[[#This Row],[Todelliset kustannukset]]","v":{"v":0,"d":"0 €"}}]
[null,"Linja-auto-/taksimaksu",null,null,{"$f":"Taulukko3[[#This Row],[Suunnitellut kustannukset]]-Taulukko3[[#This Row],[Todelliset kustannukset]]","v":{"v":0,"d":"0 €"}},null,"Luottokortti",null,null,{"$f":"Taulukko8[[#This Row],[Suunnitellut kustannukset]]-Taulukko8[[#This Row],[Todelliset kustannukset]]","v":{"v":0,"d":"0 €"}}]
[null,"Vakuutukset",null,null,{"$f":"Taulukko3[[#This Row],[Suunnitellut kustannukset]]-Taulukko3[[#This Row],[Todelliset kustannukset]]","v":{"v":0,"d":"0 €"}},null,"Luottokortti",null,null,{"$f":"Taulukko8[[#This Row],[Suunnitellut kustannukset]]-Taulukko8[[#This Row],[Todelliset kustannukset]]","v":{"v":0,"d":"0 €"}}]
[null,"Käyttöoikeudet",null,null,{"$f":"Taulukko3[[#This Row],[Suunnitellut kustannukset]]-Taulukko3[[#This Row],[Todelliset kustannukset]]","v":{"v":0,"d":"0 €"}},null,"Luottokortti",null,null,{"$f":"Taulukko8[[#This Row],[Suunnitellut kustannukset]]-Taulukko8[[#This Row],[Todelliset kustannukset]]","v":{"v":0,"d":"0 €"}}]
[null,"Polttoaine",null,null,{"$f":"Taulukko3[[#This Row],[Suunnitellut kustannukset]]-Taulukko3[[#This Row],[Todelliset kustannukset]]","v":{"v":0,"d":"0 €"}},null,"Muut",null,null,{"$f":"Taulukko8[[#This Row],[Suunnitellut kustannukset]]-Taulukko8[[#This Row],[Todelliset kustannukset]]","v":{"v":0,"d":"0 €"}}]
[null,"Ylläpito",null,null,{"$f":"Taulukko3[[#This Row],[Suunnitellut kustannukset]]-Taulukko3[[#This Row],[Todelliset kustannukset]]","v":{"v":0,"d":"0 €"}},null,"Summa",{"$f":"SUBTOTAL(109,Taulukko8[Suunnitellut kustannukset])","v":{"v":0,"d":"0 €"}},{"$f":"SUBTOTAL(109,Taulukko8[Todelliset kustannukset])","v":{"v":0,"d":"0 €"}},{"$f":"SUBTOTAL(109,Taulukko8[Erotus])","v":{"v":0,"d":"0 €"}}]
[null,"Muut",null,null,{"$f":"Taulukko3[[#This Row],[Suunnitellut kustannukset]]-Taulukko3[[#This Row],[Todelliset kustannukset]]","v":{"v":0,"d":"0 €"}}]
[null,"Summa",{"$f":"SUBTOTAL(109,Taulukko3[Suunnitellut kustannukset])","v":{"v":250,"d":"250 €"}},{"$f":"SUBTOTAL(109,Taulukko3[Todelliset kustannukset])","v":{"v":250,"d":"250 €"}},{"$f":"SUBTOTAL(109,Taulukko3[Erotus])","v":{"v":0,"d":"0 €"}},null,"VEROT","Suunnitellut kustannukset","Todelliset kustannukset","Erotus"]
[{"$nulls":6},"Liittovaltio",null,null,{"$f":"Taulukko9[[#This Row],[Suunnitellut kustannukset]]-Taulukko9[[#This Row],[Todelliset kustannukset]]","v":{"v":0,"d":"0 €"}}]
[null,"VAKUUTUKSET","Suunnitellut kustannukset","Todelliset kustannukset","Erotus",null,"Osavaltio",null,null,{"$f":"Taulukko9[[#This Row],[Suunnitellut kustannukset]]-Taulukko9[[#This Row],[Todelliset kustannukset]]","v":{"v":0,"d":"0 €"}}]
[null,"Koti",null,null,{"$f":"Taulukko4[[#This Row],[Suunnitellut kustannukset]]-Taulukko4[[#This Row],[Todelliset kustannukset]]","v":{"v":0,"d":"0 €"}},null,"Paikallinen",null,null,{"$f":"Taulukko9[[#This Row],[Suunnitellut kustannukset]]-Taulukko9[[#This Row],[Todelliset kustannukset]]","v":{"v":0,"d":"0 €"}}]
[null,"Terveys",null,null,{"$f":"Taulukko4[[#This Row],[Suunnitellut kustannukset]]-Taulukko4[[#This Row],[Todelliset kustannukset]]","v":{"v":0,"d":"0 €"}},null,"Muut",null,null,{"$f":"Taulukko9[[#This Row],[Suunnitellut kustannukset]]-Taulukko9[[#This Row],[Todelliset kustannukset]]","v":{"v":0,"d":"0 €"}}]
[null,"Elämä",null,null,{"$f":"Taulukko4[[#This Row],[Suunnitellut kustannukset]]-Taulukko4[[#This Row],[Todelliset kustannukset]]","v":{"v":0,"d":"0 €"}},null,"Summa",{"$f":"SUBTOTAL(109,Taulukko9[Suunnitellut kustannukset])","v":{"v":0,"d":"0 €"}},{"$f":"SUBTOTAL(109,Taulukko9[Todelliset kustannukset])","v":{"v":0,"d":"0 €"}},{"$f":"SUBTOTAL(109,Taulukko9[Erotus])","v":{"v":0,"d":"0 €"}}]
[null,"Muut",null,null,{"$f":"Taulukko4[[#This Row],[Suunnitellut kustannukset]]-Taulukko4[[#This Row],[Todelliset kustannukset]]","v":{"v":0,"d":"0 €"}}]
[null,"Summa",{"$f":"SUBTOTAL(109,Taulukko4[Suunnitellut kustannukset])","v":{"v":0,"d":"0 €"}},{"$f":"SUBTOTAL(109,Taulukko4[Todelliset kustannukset])","v":{"v":0,"d":"0 €"}},{"$f":"SUBTOTAL(109,Taulukko4[Erotus])","v":{"v":0,"d":"0 €"}},null,"SÄÄSTÖT TAI SIJOITUKSET","Suunnitellut kustannukset","Todelliset kustannukset","Erotus"]
[{"$nulls":6},"Eläketili",null,null,{"$f":"Taulukko10[[#This Row],[Suunnitellut kustannukset]]-Taulukko10[[#This Row],[Todelliset kustannukset]]","v":{"v":0,"d":"0 €"}}]
[null,"RUOKAKULUT","Suunnitellut kustannukset","Todelliset kustannukset","Erotus",null,"Sijoitustili",null,null,{"$f":"Taulukko10[[#This Row],[Suunnitellut kustannukset]]-Taulukko10[[#This Row],[Todelliset kustannukset]]","v":{"v":0,"d":"0 €"}}]
[null,"Ruokatarvikkeet",null,null,{"$f":"Taulukko5[[#This Row],[Suunnitellut kustannukset]]-Taulukko5[[#This Row],[Todelliset kustannukset]]","v":{"v":0,"d":"0 €"}},null,"Muut",null,null,{"$f":"Taulukko10[[#This Row],[Suunnitellut kustannukset]]-Taulukko10[[#This Row],[Todelliset kustannukset]]","v":{"v":0,"d":"0 €"}}]
[null,"Ruokailu ulkona",null,null,{"$f":"Taulukko5[[#This Row],[Suunnitellut kustannukset]]-Taulukko5[[#This Row],[Todelliset kustannukset]]","v":{"v":0,"d":"0 €"}},null,"Summa",{"$f":"SUBTOTAL(109,Taulukko10[Suunnitellut kustannukset])","v":{"v":0,"d":"0 €"}},{"$f":"SUBTOTAL(109,Taulukko10[Todelliset kustannukset])","v":{"v":0,"d":"0 €"}},{"$f":"SUBTOTAL(109,Taulukko10[Erotus])","v":{"v":0,"d":"0 €"}}]
[null,"Muut",null,null,{"$f":"Taulukko5[[#This Row],[Suunnitellut kustannukset]]-Taulukko5[[#This Row],[Todelliset kustannukset]]","v":{"v":0,"d":"0 €"}}]
[null,"Summa",{"$f":"SUBTOTAL(109,Taulukko5[Suunnitellut kustannukset])","v":{"v":0,"d":"0 €"}},{"$f":"SUBTOTAL(109,Taulukko5[Todelliset kustannukset])","v":{"v":0,"d":"0 €"}},{"$f":"SUBTOTAL(109,Taulukko5[Erotus])","v":{"v":0,"d":"0 €"}},null,"LAHJAT JA LAHJOITUKSET","Suunnitellut kustannukset","Todelliset kustannukset","Erotus"]
[{"$nulls":6},"Lahjoitukset 1",null,null,{"$f":"Taulukko11[[#This Row],[Suunnitellut kustannukset]]-Taulukko11[[#This Row],[Todelliset kustannukset]]","v":{"v":0,"d":"0 €"}}]
[null,"LEMMIKKIELÄIMET","Suunnitellut kustannukset","Todelliset kustannukset","Erotus",null,"Lahjoitukset 2",null,null,{"$f":"Taulukko11[[#This Row],[Suunnitellut kustannukset]]-Taulukko11[[#This Row],[Todelliset kustannukset]]","v":{"v":0,"d":"0 €"}}]
[null,"Ruokakulut",null,null,{"$f":"Taulukko6[[#This Row],[Suunnitellut kustannukset]]-Taulukko6[[#This Row],[Todelliset kustannukset]]","v":{"v":0,"d":"0 €"}},null,"Lahjoitukset 3",null,null,{"$f":"Taulukko11[[#This Row],[Suunnitellut kustannukset]]-Taulukko11[[#This Row],[Todelliset kustannukset]]","v":{"v":0,"d":"0 €"}}]
[null,"Terveydenhoito",null,null,{"$f":"Taulukko6[[#This Row],[Suunnitellut kustannukset]]-Taulukko6[[#This Row],[Todelliset kustannukset]]","v":{"v":0,"d":"0 €"}},null,"Summa",{"$f":"SUBTOTAL(109,Taulukko11[Suunnitellut kustannukset])","v":{"v":0,"d":"0 €"}},{"$f":"SUBTOTAL(109,Taulukko11[Todelliset kustannukset])","v":{"v":0,"d":"0 €"}},{"$f":"SUBTOTAL(109,Taulukko11[Erotus])","v":{"v":0,"d":"0 €"}}]
[null,"Trimmaus",null,null,{"$f":"Taulukko6[[#This Row],[Suunnitellut kustannukset]]-Taulukko6[[#This Row],[Todelliset kustannukset]]","v":{"v":0,"d":"0 €"}}]
[null,"Lelut",null,null,{"$f":"Taulukko6[[#This Row],[Suunnitellut kustannukset]]-Taulukko6[[#This Row],[Todelliset kustannukset]]","v":{"v":0,"d":"0 €"}},null,"LAKIASIAT","Suunnitellut kustannukset","Todelliset kustannukset","Erotus"]
[null,"Muut",null,null,{"$f":"Taulukko6[[#This Row],[Suunnitellut kustannukset]]-Taulukko6[[#This Row],[Todelliset kustannukset]]","v":{"v":0,"d":"0 €"}},null,"Asianajaja",null,null,{"$f":"Taulukko12[[#This Row],[Suunnitellut kustannukset]]-Taulukko12[[#This Row],[Todelliset kustannukset]]","v":{"v":0,"d":"0 €"}}]
[null,"Summa",{"$f":"SUBTOTAL(109,Taulukko6[Suunnitellut kustannukset])","v":{"v":0,"d":"0 €"}},{"$f":"SUBTOTAL(109,Taulukko6[Todelliset kustannukset])","v":{"v":0,"d":"0 €"}},{"$f":"SUBTOTAL(109,Taulukko6[Erotus])","v":{"v":0,"d":"0 €"}},null,"Elatusapu",null,null,{"$f":"Taulukko12[[#This Row],[Suunnitellut kustannukset]]-Taulukko12[[#This Row],[Todelliset kustannukset]]","v":{"v":0,"d":"0 €"}}]
[{"$nulls":6},"Pantti- tai sakkomaksut",null,null,{"$f":"Taulukko12[[#This Row],[Suunnitellut kustannukset]]-Taulukko12[[#This Row],[Todelliset kustannukset]]","v":{"v":0,"d":"0 €"}}]
[null,"HYVINVOINTI","Suunnitellut kustannukset","Todelliset kustannukset","Erotus",null,"Muut",null,null,{"$f":"Taulukko12[[#This Row],[Suunnitellut kustannukset]]-Taulukko12[[#This Row],[Todelliset kustannukset]]","v":{"v":0,"d":"0 €"}}]
[null,"Terveydenhoito",null,null,{"$f":"Taulukko7[[#This Row],[Suunnitellut kustannukset]]-Taulukko7[[#This Row],[Todelliset kustannukset]]","v":{"v":0,"d":"0 €"}},null,"Summa",{"$f":"SUBTOTAL(109,Taulukko12[Suunnitellut kustannukset])","v":{"v":0,"d":"0 €"}},{"$f":"SUBTOTAL(109,Taulukko12[Todelliset kustannukset])","v":{"v":0,"d":"0 €"}},{"$f":"SUBTOTAL(109,Taulukko12[Erotus])","v":{"v":0,"d":"0 €"}}]
[null,"Kampaamo/kynnet",null,null,{"$f":"Taulukko7[[#This Row],[Suunnitellut kustannukset]]-Taulukko7[[#This Row],[Todelliset kustannukset]]","v":{"v":0,"d":"0 €"}}]
[null,"Vaatteet",null,null,{"$f":"Taulukko7[[#This Row],[Suunnitellut kustannukset]]-Taulukko7[[#This Row],[Todelliset kustannukset]]","v":{"v":0,"d":"0 €"}},null,"SUUNNITELLUT KOKONAISKUSTANNUKSET",null,null,{"$f":"SUM(C23,C33,C40,C46,C54,C64,H22,H31,H38,H44,H50,H57)","v":{"v":2060,"d":"2,060 €"}}]
[null,"Pesula",null,null,{"$f":"Taulukko7[[#This Row],[Suunnitellut kustannukset]]-Taulukko7[[#This Row],[Todelliset kustannukset]]","v":{"v":0,"d":"0 €"}}]
[null,"Kuntokeskus",null,null,{"$f":"Taulukko7[[#This Row],[Suunnitellut kustannukset]]-Taulukko7[[#This Row],[Todelliset kustannukset]]","v":{"v":0,"d":"0 €"}},null,"TODELLISET KOKONAISKUSTANNUKSET",null,null,{"$f":"SUM(D23,D33,D40,D46,D54,D64,I22,I31,I38,I44,I50,H57)","v":{"v":2040,"d":"2,040 €"}}]
[null,"Järjestöjen laskut tai jäsenmaksut",null,null,{"$f":"Taulukko7[[#This Row],[Suunnitellut kustannukset]]-Taulukko7[[#This Row],[Todelliset kustannukset]]","v":{"v":0,"d":"0 €"}}]
[null,"Muut",null,null,{"$f":"Taulukko7[[#This Row],[Suunnitellut kustannukset]]-Taulukko7[[#This Row],[Todelliset kustannukset]]","v":{"v":0,"d":"0 €"}},null,"KOKONAISEROTUS",null,null,{"$f":"SUM(E23,E33,E40,E46,E54,E64,J22,J31,J38,J44,J50,H57)","v":{"v":20,"d":"20 €"}}]
[null,"Summa",{"$f":"SUBTOTAL(109,Taulukko7[Suunnitellut kustannukset])","v":{"v":0,"d":"0 €"}},{"$f":"SUBTOTAL(109,Taulukko7[Todelliset kustannukset])","v":{"v":0,"d":"0 €"}},{"$f":"SUBTOTAL(109,Taulukko7[Erotus])","v":{"v":0,"d":"0 €"}}]